Cogmind - Beta 12 @@@ ROGUE MODE // 2023.12.02 @ 11:34:33 Player: babadi Result: Destroyed by GK-2MI(z) with Makeshift Axe Performance ------------- Evolutions (3) 1500 Regions Visited (9) 1800 Robots Destroyed (140) 700 Value Destroyed (3765) 3765 Prototype IDs (31) 620 Alien Tech Used (0) 0 Bonus (789) 789 TOTAL SCORE: 9174 Bonus ------- High Alert Combat Kills 173 Follower Combat Kills 35 Aligned with FarCom 300 Met Imprinter 300 Friendly Fire -19 Cogmind --------- Core Integrity 0/700 Matter 151/300 Energy 100/100 System Corruption 7% Temperature Cool (0) Movement Core (150) Ox2 Location -7/Zion Parts ------- > --- POWER (1) -------- (None) > --- PROPULSION (3) --- (None) > --- UTILITY (6) ------ Weapon Cycler > --- WEAPON (3) ------- Advanced Assault Cannon > --- INVENTORY (5) ---- Hardened Heavy Armor Plating Heart of Steel Peak State ------------ > --- POWER ------------ Reinforced Deuterium Engine > --- PROPULSION ------- Wheel Wheel > --- UTILITY ---------- Lightpack 2.0 Improved Signal Interpreter Improved Medium Armor Plating Hacking Drone Bay > --- WEAPON ----------- Flak Gun Flak Gun Gauss Cannon > --- INVENTORY -------- Nuclear Core Nuclear Core Nuclear Core Improved Deuterium Engine Improved Deuterium Engine Micro Nuclear Core Makeshift Power Source Makeshift Power Source Improved Heat Sink Improved Heat Sink Improved Heat Sink Improved Sensor Array Improved Signal Interpreter Improved Signal Interpreter Terrain Scan Processor Transport Network Coupler Matter Filter Kinecellerator Hardened Heavy Armor Plating Tractor Beam Heart of Steel Heavy EM Shotgun Particle Gun Heavy Particle Gun Heavy Particle Cannon Heavy Assault Rifle Heavy Assault Rifle Improved Assault Rifle Advanced Assault Cannon Plasma Cutter Makeshift Hammer Self-destruct Interrupter Self-destruct Interrupter [Rating: 77] Favorites ----------- Power Light Nuclear Core Engine Reinforced Deuterium Engine Power Core Light Nuclear Core Propulsion Wheel Treads Light Treads Leg Carbon-fiber Leg Wheel Wheel Hover Unit Gravmag System Utility Lightpack 2.0 Device Improved Heat Sink Storage Lightpack 2.0 Processor Improved Signal Interpreter Hackware System Shield Protection Hardened Medium Armor Plating Weapon Flak Gun Energy Gun Heavy Particle Gun Energy Cannon Heavy Ion Cannon Ballistic Gun Flak Gun Ballistic Cannon Flak Cannon Launcher Advanced EMP Blaster Impact Weapon Makeshift Hammer Build | -11 -10 -10 -10 -9 -8 -7 -7 -7 -7 ------- Run | Jun Mat Min Exi Min Mat Fac Low Low Zio Slots Evolved 6 | . . . . . 4 2 . . . Power . | . . . . . . . . . . Propulsion 1 | . . . . . 1 . . . . Utility 4 | . . . . . 3 1 . . . Weapon 1 | . . . . . . 1 . . . Parts Attached 117 | 7 5 1 4 . 41 37 3 7 12 Power 11 | 1 1 . . . 4 4 . . 1 Engine 4 | 1 . . . . 1 2 . . . Core 7 | . 1 . . . 3 2 . . 1 Reactor . | . . . . . . . . . . Propulsion 27 | 2 . . 2 . 9 9 1 1 3 Treads 1 | . . . . . . 1 . . . Leg 2 | . . . . . . . . . 2 Wheel 23 | 2 . . 2 . 9 8 1 1 . Hover 1 | . . . . . . . . . 1 Flight . | . . . . . . . . . . Utility 28 | 2 1 1 2 . 6 9 1 2 4 Device 17 | 1 . 1 2 . 2 6 1 . 4 Storage 3 | 1 1 . . . 1 . . . . Processor 2 | . . . . . 1 1 . . . Hackware 1 | . . . . . . 1 . . . Protection 5 | . . . . . 2 1 . 2 . Artifact . | . . . . . . . . . . Weapon 51 | 2 3 . . . 22 15 1 4 4 Energy Gun 18 | 1 . . . . 10 6 . . 1 Energy Cannon 5 | . . . . . . 4 . . 1 Ballistic Gun 7 | 1 2 . . . 1 1 1 1 . Ballistic Cannon 13 | . 1 . . . 7 2 . 1 2 Launcher 7 | . . . . . 4 2 . 1 . Special Weapon . | . . . . . . . . . . Impact Weapon 1 | . . . . . . . . 1 . Slashing Weapon . | . . . . . . . . . . Piercing Weapon . | . . . . . . . . . . Special Melee Weapon . | . . . . . . . . . . Unidentified Prototypes 9 | . . . 1 . 5 2 . . 1 Corrupted Parts 1 | . . . . . . . . . 1 System Corruption 3 | . . . . . . . . . 3 Parts Lost 54 | . . 1 . . 12 19 . 3 19 Power 8 | . . . . . 3 3 . . 2 Propulsion 19 | . . . . . 5 7 . 2 5 Utility 13 | . . 1 . . 1 4 . 1 6 Weapon 14 | . . . . . 3 5 . . 6 Highest Loss Streak 13 | . . 1 . . 3 6 . 1 13 To Critical Strikes . | . . . . . . . . . . Average Slot Usage (%) 82 | . 100 100 99 100 74 77 81 81 69 Engine 3 | . 5 . . . 2 1 7 7 5 Core 5 | . 8 14 14 14 5 5 . . . Wheel 21 | . 28 28 28 28 21 19 20 20 12 Device 11 | . 14 14 13 14 8 11 14 13 6 Storage 9 | . 14 14 14 14 9 7 7 7 6 Processor 3 | . . . . . 4 . 7 7 6 Protection 3 | . . . . . 4 6 . 1 5 Energy Gun 4 | . . . . . 10 12 . . . Energy Cannon 1 | . . . . . . 4 2 . . Ballistic Gun 8 | . 17 14 14 14 . 1 11 14 12 Ballistic Cannon 7 | . 9 14 14 14 6 1 7 5 6 Naked Turns . | . . . . . . . . . . Heaviest Build 48 | 14 22 22 23 22 34 48 45 42 42 Greatest Support 30 | 20 20 20 20 20 30 30 30 30 30 Greatest Overweight (x) 12 | 3 1 1 1 1 2 3 1 2 12 Average Overweight (x) 1 | . . 1 1 1 . 1 1 1 2 Largest Inventory Capacity 40 | 8 10 10 10 10 40 40 40 40 40 Average Capacity 31 | 7 9 10 10 10 40 40 40 40 38 Most Carried 37 | 7 10 10 10 10 31 34 34 34 37 Average Carried 22 | 2 9 9 9 10 18 28 32 33 33 Final Capacity 40 | 8 10 10 10 10 40 40 40 40 5 Final Carried 32 | 7 10 10 10 10 30 32 32 32 5 Class Distribution -------------------- 35% | Hauler-Mutant 34% | Hauler-Skirmisher 16% | Scavenger-Mutant 12% | Mutant Dominant Class ---------------- Mutant | -10/Materials Mutant | -10/Mines Scavenger-Mutant | -10/Exiles Scavenger-Mutant | -9/Mines Hauler-Mutant | -8/Materials Hauler-Skirmisher | -7/Factory Hauler-Skirmisher | -7/Lower Caves Hauler-Skirmisher | -7/Lower Caves Hauler-Mutant | -7/Zion Resources | -11 -10 -10 -10 -9 -8 -7 -7 -7 -7 ----------- Run | Jun Mat Min Exi Min Mat Fac Low Low Zio Matter Collected 2886 | 227 167 113 . 80 1048 500 190 288 273 Remotely 15 | . . . . . . 15 . . . Salvage Created 4067 | 53 167 133 . 64 1324 1739 42 213 332 Parts 251 | 10 9 1 . 4 95 111 1 5 15 Haulers Intercepted 8 | . 1 . . . 6 1 . . . Recyclers Shooed 7 | . . . . . 5 2 . . . Parts Field Recycled . | . . . . . . . . . . Retrieved Matter . | . . . . . . . . . . Parts Self-Destructed 3 | . . . . . . . . 3 . Prevented 1 | . . . . . . . 1 . . Kills | -11 -10 -10 -10 -9 -8 -7 -7 -7 -7 ------- Run | Jun Mat Min Exi Min Mat Fac Low Low Zio Combat Hostiles Destroyed 71 | . 2 2 . 2 20 29 1 9 6 Guns 24 | . . 2 . 2 5 11 . 3 1 Cannons 19 | . 2 . . . 5 5 1 1 5 AOE 26 | . . . . . 10 13 . 3 . Classes Destroyed 16 | 1 3 . . . 5 5 . . 2 Worker 14 | . 1 . . . 8 5 . . . Builder 22 | . . . . . 10 12 . . . Tunneler 3 | 3 . . . . . . . . . Hauler 8 | . 1 . . . 6 1 . . . Recycler 5 | . . . . . 2 3 . . . Mechanic 1 | . . . . . . 1 . . . Watcher 7 | . . . . . 4 3 . . . Swarmer 15 | . . . . . 3 8 . 4 . Grunt 39 | . 2 2 . 2 16 13 . 4 . Brawler 1 | . . . . . . 1 . . . Duelist 1 | . . . . . 1 . . . . Sentry 5 | . . . . . . 4 1 . . Hunter 1 | . . . . . . 1 . . . Programmer 3 | . . . . . . 2 . 1 . Zionite 8 | . . . . . . . . . 8 Decomposer 2 | . . . . . . . . 2 . Surgeon 1 | . . . . . . . . . 1 Thug 2 | . . . . . . . . . 2 Mutant 4 | . . . . . . . . . 4 Best Kill Streak 16 | 2 2 1 . 2 10 16 1 4 7 Combat Bots Only 10 | . 2 1 . 2 4 10 1 4 3 Max Kills in Single Turn 6 | 1 1 1 . 1 3 6 1 3 1 Gunslinging . | . . . . . . . . . . Exploded 4 | . . . . . 3 4 . 2 . Melee . | . . . . . . . . . . Uniques/NPCs Destroyed . | . . . . . . . . . . Combat | -11 -10 -10 -10 -9 -8 -7 -7 -7 -7 -------- Run | Jun Mat Min Exi Min Mat Fac Low Low Zio Damage Taken 6871 | . 103 264 . 66 1681 2260 84 391 2022 Core 1212 | . 42 77 . . 379 326 35 47 306 Absorbed by Shields . | . . . . . . . . . . Regen/Repaired (Parts) 36 | . . . . . 36 . . . . Core Remaining (%) 61 | 100 . . . 52 31 . . . . Volleys Fired 340 | 11 12 13 . 5 129 101 5 17 47 Largest 3 | 2 2 2 . 2 2 3 3 3 3 Hottest 185 | 60 58 58 . 58 116 185 135 102 125 Shots Fired 716 | 22 23 27 . 10 240 269 16 43 66 Gun 401 | 22 15 14 . 5 122 170 7 32 14 Cannon 283 | . 8 13 . 5 100 87 9 9 52 Launcher 32 | . . . . . 18 12 . 2 . Special . | . . . . . . . . . . Kinetic 313 | 11 23 27 . 10 100 33 13 41 55 Thermal 330 | . . . . . 103 219 . . 8 Explosive 24 | . . . . . 18 4 . 2 . Electromagnetic 49 | 11 . . . . 19 13 3 . 3 Robot Hit Streak 16 | 4 6 14 . 4 12 16 10 6 15 Robot Miss Streak 15 | 3 3 2 . 2 6 7 9 15 6 Penetration Max 1 | . . . . . . . . . 1 Secondary Targets 1 | . . . . . 1 . . . . Max Gunslinging Chain 1 | . . . . . 1 . . . . Shots Hit Robots 404 | 13 12 17 . 6 115 140 13 32 56 Core Hits 286 | 4 5 10 . 3 77 103 10 39 35 Critical Kills . | . . . . . . . . . . Critical Parts Destroyed 1 | . . . . . . . . 1 . Critical Strikes 14 | . . . . . 5 4 . 1 4 Burn 8 | . . . . . 4 4 . . . Blast 5 | . . . . . 1 . . . 4 Smash 1 | . . . . . . . . 1 . Melee Attacks 9 | . . . . . . . . 9 . Impact 9 | . . . . . . . . 9 . Slashing . | . . . . . . . . . . Piercing . | . . . . . . . . . . Sneak Attacks . | . . . . . . . . . . Combat Hostiles . | . . . . . . . . . . Follow-up Attacks . | . . . . . . . . . . Damage Inflicted 11601 | 155 168 283 . 96 3685 4416 250 1070 1478 Guns 4419 | 155 131 171 . 46 1303 1913 73 383 244 Cannons 3926 | . 37 112 . 50 1151 1105 177 60 1234 Explosions 2939 | . . . . . 1231 1398 . 310 . Melee 317 | . . . . . . . . 317 . Ramming . | . . . . . . . . . . Kinetic 4144 | 85 168 283 . 96 1151 460 184 443 1274 Thermal 4342 | . . . . . 1058 3134 . . 150 Explosive 2074 | . . . . . 1192 572 . 310 . Electromagnetic 724 | 70 . . . . 284 250 66 . 54 Impact 317 | . . . . . . . . 317 . Slashing . | . . . . . . . . . . Piercing . | . . . . . . . . . . Highest Corruption 7 | . 1 1 1 1 . 3 3 3 7 Average Corruption 2 | . 1 1 1 1 . 2 3 3 3 Corruption Purged . | . . . . . . . . . . Corruption Blocked . | . . . . . . . . . . Effects 64 | . 1 3 7 2 . 20 13 10 8 Message Errors 17 | . . 1 3 1 . 6 2 2 2 Matter Fused 11 | . . . 1 . . 4 3 1 2 Heat Flow Errors 9 | . . 1 . . . 2 2 2 2 Energy Discharges 7 | . . . . 1 . 3 1 . 2 Data Loss (minor) 11 | . 1 . 2 . . 3 2 3 . Data Loss (major) 2 | . . . . . . 1 . 1 . Misfires 5 | . . 1 . . . 1 3 . . Alerts 1 | . . . 1 . . . . . . Weapon Failures 1 | . . . . . . . . 1 . Overload Shots . | . . . . . . . . . . Overflow Damage 385 | . . . . . 83 200 . 71 31 Projectiles 121 | . . . . . 61 29 . . 31 Explosions 193 | . . . . . 22 171 . . . Melee 71 | . . . . . . . . 71 . Knockbacks 33 | . . 1 . 1 16 1 3 6 5 Impact 3 | . . . . . . . . 3 . Kinetic 29 | . . 1 . 1 16 1 3 2 5 Secondary 1 | . . . . . . . . 1 . Self-Inflicted Damage 277 | . . . . . 22 255 . . . Shots 7 | . . . . . 1 6 . . . Rammed 1 | . . . . . 1 . . . . Targets Rammed 1 | . . . . . 1 . . . . Kicked . | . . . . . . . . . . Crushed . | . . . . . . . . . . Highest Temperature 553 | 40 19 175 . 36 516 232 149 224 553 Average Temperature 94 | 18 9 40 . 14 102 65 41 49 192 Received Heat Transfer 3049 | . 33 81 . 36 972 549 6 126 1246 Effects 11 | . . . . . 5 . . . 6 Shutdowns 3 | . . . . . 1 . . . 2 Energy Bleed 1 | . . . . . 1 . . . . Interference 3 | . . . . . 2 . . . 1 Matter Decay 3 | . . . . . . . . . 3 Short Circuit 1 | . . . . . 1 . . . . Siege Activations . | . . . . . . . . . . Robots Corrupted . | . . . . . . . . . . Combat Hostiles . | . . . . . . . . . . Parts Fried 4 | . . . . . . . . 4 . Impact Corruptions 4 | . . . . . . . . 4 . Robots Melted . | . . . . . . . . . . Combat Hostiles . | . . . . . . . . . . Parts Melted 21 | . . . . . 3 18 . . . Heat Transferred 7765 | . . . . . 2270 5273 . . 222 Parts Sabotaged . | . . . . . . . . . . Parts Stolen 2 | . . . . . . . 2 . . Parts Stripped . | . . . . . . . . . . Power Chain Reactions 2 | . . . . . 1 1 . . . Missiles Intercepted . | . . . . . . . . . . Alert | -11 -10 -10 -10 -9 -8 -7 -7 -7 -7 ------- Run | Jun Mat Min Exi Min Mat Fac Low Low Zio Peak Influence 760 | 15 166 85 . 50 397 760 . . . Initial 149 | . 9 5 . . 19 149 . . . Average 204 | 4 44 43 . 42 194 324 . . . Maximum Alert Level 3 | . . . . . 1 3 . . . Low Security (%) 51 | 100 100 100 . 100 44 23 . . . Level 1 38 | . . . . . 55 50 . . . Level 2 9 | . . . . . . 23 . . . Level 3 . | . . . . . . 2 . . . Level 4 . | . . . . . . . . . . Level 5 . | . . . . . . . . . . High Security . | . . . . . . . . . . Max Security . | . . . . . . . . . . Squads Dispatched 17 | . 4 . . . 6 7 . . . Investigation 7 | . 3 . . . 1 3 . . . Extermination 2 | . . . . . . 2 . . . Reinforcement 7 | . 1 . . . 4 2 . . . Assault . | . . . . . . . . . . Garrison 1 | . . . . . 1 . . . . Intercept . | . . . . . . . . . . Searches Triggered . | . . . . . . . . . . Construction Impeded 3 | . . . . . 2 1 . . . Haulers Reinforced . | . . . . . . . . . . Active Scanning Responses . | . . . . . . . . . . Cargo Convoy Interrupts . | . . . . . . . . . . Stealth | -11 -10 -10 -10 -9 -8 -7 -7 -7 -7 --------- Run | Jun Mat Min Exi Min Mat Fac Low Low Zio Distress Signals 7 | . 2 . . . 2 3 . . . Communications Jammed . | . . . . . . . . . . Distress Signals . | . . . . . . . . . . Times Spotted 111 | . 6 5 . 2 28 37 5 10 18 Peak Tracking Total 11 | . 3 2 . 2 4 11 4 4 10 Tactical Retreats 11 | . 2 1 . . . 5 1 1 1 Traps | -11 -10 -10 -10 -9 -8 -7 -7 -7 -7 ------- Run | Jun Mat Min Exi Min Mat Fac Low Low Zio Traps Triggered 1 | . 1 . . . . . . . . Indirectly . | . . . . . . . . . . Trap Hack Attempts . | . . . . . . . . . . Triggered . | . . . . . . . . . . Disarmed . | . . . . . . . . . . Reprogrammed . | . . . . . . . . . . Reused . | . . . . . . . . . . Traps Extracted . | . . . . . . . . . . Installed . | . . . . . . . . . . Triggered . | . . . . . . . . . . Machines | -11 -10 -10 -10 -9 -8 -7 -7 -7 -7 ---------- Run | Jun Mat Min Exi Min Mat Fac Low Low Zio Machines Disabled 17 | . . . . . 2 13 . . 2 Max in Single Turn 6 | . . . . . 1 6 . . 1 Machines Repaired . | . . . . . . . . . . Machines Sabotaged . | . . . . . . . . . . Overloaded Fab Kills . | . . . . . . . . . . Hacking | -11 -10 -10 -10 -9 -8 -7 -7 -7 -7 --------- Run | Jun Mat Min Exi Min Mat Fac Low Low Zio Machines Accessed 21 | . 4 . 5 . 3 7 1 1 . Terminals 9 | . 4 . . . 2 3 . . . Fabricators 1 | . . . . . . 1 . . . Repair Stations 1 | . . . . . 1 . . . . Recycling Units 2 | . . . . . . 2 . . . Scanalyzers 1 | . . . . . . 1 . . . Garrison Access . | . . . . . . . . . . Total Hacks 90 | . 13 . 50 . 8 17 1 1 . Successful 62 | . 3 . 50 . 4 3 1 1 . Failed 28 | . 10 . . . 4 14 . . . Catastrophic 5 | . 2 . . . 1 2 . . . Database Lockouts . | . . . . . . . . . . Manual 8 | . 1 . 3 . 1 3 . . . Terminals 29 | . 13 . . . 6 10 . . . Fabricators 1 | . . . . . . 1 . . . Repair Stations 2 | . . . . . 2 . . . . Recycling Units 3 | . . . . . . 3 . . . Scanalyzers 3 | . . . . . . 3 . . . Garrison Access . | . . . . . . . . . . Terminal Hacks 58 | . 3 . 50 . 2 1 1 1 . Record 50 | . . . 49 . 1 . . . . Open Door 2 | . . . . . . . 1 1 . Locate Traps 2 | . 1 . . . . 1 . . . Hauler Manifests 2 | . 1 . . . 1 . . . . Zone Layout 1 | . 1 . . . . . . . . EX-Prototype ID Bank 1 | . . . 1 . . . . . . Fabricator Hacks . | . . . . . . . . . . Repair Station Hacks 2 | . . . . . 2 . . . . Scan Component 1 | . . . . . 1 . . . . Repair 1 | . . . . . 1 . . . . Recycling Unit Hacks . | . . . . . . . . . . Scanalyzer 2 | . . . . . . 2 . . . Insert Component 1 | . . . . . . 1 . . . Analyze 1 | . . . . . . 1 . . . Garrison Access Hacks . | . . . . . . . . . . Unauthorized Hacks . | . . . . . . . . . . Terminals . | . . . . . . . . . . Fabricators . | . . . . . . . . . . Repair Stations . | . . . . . . . . . . Recycling Units . | . . . . . . . . . . Scanalyzers . | . . . . . . . . . . Garrison Access . | . . . . . . . . . . Data Cores Recovered . | . . . . . . . . . . Used . | . . . . . . . . . . Hacking Detections 14 | . 4 . . . 3 7 . . . Full Trace Events 7 | . 3 . . . 1 3 . . . Feedback Events 1 | . 1 . . . . . . . . Corruption 1 | . 1 . . . . . . . . Feedback Blocked . | . . . . . . . . . . Robot Schematics Acquired 3 | . . . . . . . . . 3 Robots Built . | . . . . . . . . . . Authchips . | . . . . . . . . . . Time . | . . . . . . . . . . Total Robot Build Rating . | . . . . . . . . . . Part Schematics Acquired 15 | . . . . . . 1 . . 14 Parts Built . | . . . . . . . . . . Authchips . | . . . . . . . . . . Time . | . . . . . . . . . . Total Part Build Rating . | . . . . . . . . . . Parts Repaired 1 | . . . . . 1 . . . . Time 26 | . . . . . 26 . . . . Parts Recycled . | . . . . . . . . . . Recycled Matter . | . . . . . . . . . . Retrieved Matter . | . . . . . . . . . . Retrieved Components . | . . . . . . . . . . Parts Scanalyzed 1 | . . . . . . 1 . . . Part Schematics Acquired 1 | . . . . . . 1 . . . Parts Damaged . | . . . . . . . . . . Bothacking | -11 -10 -10 -10 -9 -8 -7 -7 -7 -7 ------------ Run | Jun Mat Min Exi Min Mat Fac Low Low Zio Used RIF Installer . | . . . . . . . . . . Robots Hacked . | . . . . . . . . . . Non-combat . | . . . . . . . . . . Combat . | . . . . . . . . . . Robot Hacks Applied . | . . . . . . . . . . Relay Couplers Released . | . . . . . . . . . . Fabnet Peak Effective % . | . . . . . . . . . . Robots Rewired . | . . . . . . . . . . Allies Hacked . | . . . . . . . . . . Hacks Repelled . | . . . . . . . . . . Allies | -11 -10 -10 -10 -9 -8 -7 -7 -7 -7 -------- Run | Jun Mat Min Exi Min Mat Fac Low Low Zio Total Allies 5 | . . . . 3 . . . . 2 Largest Group 3 | . . . . 3 3 . . . 2 Highest-Rated Group 62 | . . . . 40 40 . . . 62 Highest-Rated Ally 31 | . . . . 16 16 . . . 31 Total Orders 4 | . . . . . 2 . . . 2 STAY 1 | . . . . . 1 . . . . ROAM 1 | . . . . . 1 . . . . EXPLORE 1 | . . . . . . . . . 1 RETURN 1 | . . . . . . . . . 1 Ally Attacks 31 | . . . . . 31 . . . . Total Damage 316 | . . . . . 316 . . . . Kills 2 | . . . . . 2 . . . . Allies Corrupted . | . . . . . . . . . . Allies Melted . | . . . . . . . . . . Intel | -11 -10 -10 -10 -9 -8 -7 -7 -7 -7 ------- Run | Jun Mat Min Exi Min Mat Fac Low Low Zio Robot Analysis Total . | . . . . . . . . . . Derelict Logs Recovered 5 | . . . . . . . 1 2 2 Drone Launches 1 | . . . . . . . . . 1 Drone Recoveries 1 | . . . . . . . . . 1 Exploration | -11 -10 -10 -10 -9 -8 -7 -7 -7 -7 ------------- Run | Jun Mat Min Exi Min Mat Fac Low Low Zio Turns Passed 9245 | 120 759 237 1310 185 1580 1919 1205 609 1321 Spaces Moved 6941 | 81 302 189 1363 158 939 1251 1185 483 990 Core 24 | 5 . . . . . . . . 19 Treads 11 | . . . . . . 11 . . . Legs 6 | . . . . . . . . . 6 Wheels 6860 | 76 302 189 1363 158 939 1240 1185 483 925 Hover 40 | . . . . . . . . . 40 Flight . | . . . . . . . . . . Fastest Speed 50 | 50 80 95 95 95 80 80 95 95 95 Average Speed 97 | 83 93 95 95 95 90 96 95 95 115 Slowest Speed 650 | 200 95 95 95 95 110 240 95 110 650 Overloaded Moves . | . . . . . . . . . . Propulsion Burnouts . | . . . . . . . . . . Robots Hopped . | . . . . . . . . . . Cave-ins Triggered . | . . . . . . . . . . Exploration Rate (%) 52 | 3 37 44 94 37 43 30 89 56 87 Regions Visited 9 Branch Regions 6 Pre-discovered Areas 5 | . . . 1 . . . . 1 3 Known Exits Taken 3 | . . . . . . 1 1 1 . Unknown Exits Taken 6 | 1 1 1 1 1 1 . . . . Scrap Searched 16 | . . . . . . . 4 10 2 Spaces Dug 70 | . . . . . 43 27 . . . Terrain Destroyed 236 | . . . . . 132 92 . 12 . Melee . | . . . . . . . . . . Projectile 42 | . . . . . 35 7 . . . AOE 194 | . . . . . 97 85 . 12 . Terrain Rammed . | . . . . . . . . . . Walls Destroyed . | . . . . . . . . . . Machines Disabled . | . . . . . . . . . . Actions | -11 -10 -10 -10 -9 -8 -7 -7 -7 -7 --------- Run | Jun Mat Min Exi Min Mat Fac Low Low Zio Total 8746 | 110 755 220 1379 182 1417 1740 1252 584 1107 Wait 1212 | 4 428 8 3 20 254 323 55 66 51 Move 6932 | 80 301 188 1362 157 938 1250 1184 482 990 Hop . | . . . . . . . . . . Pick Up 99 | 8 5 2 3 . 47 24 2 3 5 Fast Attach 22 | 6 . . 1 . 1 8 . 1 5 Attach 45 | 1 . 1 . . 17 17 2 1 6 Detach 3 | . . . . . 1 2 . . . Swap 51 | . 5 . 3 . 24 12 1 5 1 Drop 21 | . 4 1 6 . 5 3 . . 2 Fire 340 | 11 12 13 . 5 129 101 5 17 47 Melee 9 | . . . . . . . . 9 . Ram 1 | . . . . . 1 . . . . Kick . | . . . . . . . . . . Crush . | . . . . . . . . . . Escape Stasis . | . . . . . . . . . . Rewire 11 | . . 7 1 . . . 3 . . Trap . | . . . . . . . . . . Miscellaneous . | . . . . . . . . . . Route ------- -11/Junkyard -10/Materials -10/Mines -10/Exiles (discovered 2 exits: [*Min x2]) -9/Mines -8/Materials -7/Factory -7/Lower Caves -7/Lower Caves (discovered 2 exits: *Fac / *Zio) -7/Zion (discovered 1 exit: *Pro) History --------- Turn | Location | Event 20 | -11/Junkyard | Discovered new exit (range 15) 121 | -11/Junkyard | Entered Materials 300 | -10/Materials | Build established: Mutant 378 | -10/Materials | Discovered new exit (range 14) 880 | -10/Materials | Entered Mines 889 | -10/Mines | Met a Derelict bent on vengeance 997 | -10/Mines | Assembled infested the area 1052 | -10/Mines | Met 8R-AWN 1113 | -10/Mines | Discovered new exit (range 5) 1117 | -10/Mines | Entered Exiles 1151 | -10/Exiles | Welcomed by 8R-AWN 1166 | -10/Exiles | Met EX-HEX 1223 | -10/Exiles | Met EX-BIN 1385 | -10/Exiles | Discovered new exit (range 14) 1423 | -10/Exiles | Met EX-DEC 1426 | -10/Exiles | Build established: Scavenger-Mutant 1456 | -10/Exiles | Visited The Gauntlet 1596 | -10/Exiles | Learned about 8R-AWN's background 1620 | -10/Exiles | Discovered new exit (range 14) 1696 | -10/Exiles | Aligned with FarCom system 1697 | -10/Exiles | Given EX-Vault access code 1749 | -10/Exiles | Opened EX-Vault 1760 | -10/Exiles | Found Prototype Device 1761 | -10/Exiles | Identified Skeleton Box 1772 | -10/Exiles | Found Lightpack 2.0 1799 | -10/Exiles | Warned to stay clear of 0b10 Research branches 1879 | -10/Exiles | Learned location of Zion (-7) 2427 | -10/Exiles | Left Exiles lab with Lightpack 2.0 2427 | -10/Exiles | Entered Mines 2430 | -9/Mines | Discovered new exit (range 7) 2542 | -9/Mines | Assisted by bots powering up and referring to "LRC-V3" 2612 | -9/Mines | Entered Materials 2612 | -8/Materials | Accompanied by 3 allies 2612 | -8/Materials | Evolved 4 slots: Propulsion x1, Utility x3 2902 | -8/Materials | Build established: Hauler-Mutant 3649 | -8/Materials | Garrison activated, responded to threat 3689 | -8/Materials | Lost 3 parts (1p1n1u) 3697 | -8/Materials | Core integrity fell below 50% 4181 | -8/Materials | Repaired Wheel 4190 | -8/Materials | Discovered new exit (range 4) 4192 | -8/Materials | Entered Factory 4192 | -7/Factory | Evolved 2 slots: Utility x1, Weapon x1 4476 | -7/Factory | Build established: Hauler-Skirmisher 4619 | -7/Factory | Lost 3 parts (1p1n1w) 4774 | -7/Factory | Lost 6 parts (1p2n1u2w) 4819 | -7/Factory | Lost 3 parts (1p1n1u) 5781 | -7/Factory | Lost 5 parts (2n1u2w) 5790 | -7/Factory | Destroyed 10 combat bots 6035 | -7/Factory | Discovered new exit (range 15) 6109 | -7/Factory | Identified exit to Lower Caves 6111 | -7/Factory | Entered Lower Caves 6132 | -7/Lower Caves | Attracted the attention of an 0b10 checkpoint 6151 | -7/Lower Caves | Core integrity fell below 50% 6491 | -7/Lower Caves | Discovered new exit (range 8) 6493 | -7/Lower Caves | Learned Factory stockpile data 6497 | -7/Lower Caves | Identified exit to Lower Caves 6518 | -7/Lower Caves | Found Prototype Device 7316 | -7/Lower Caves | Entered another Lower Caves area 7404 | -7/Lower Caves | Discovered new exit (range 14) 7419 | -7/Lower Caves | Identified exit to Factory 7426 | -7/Lower Caves | Identified exit to Zion 7925 | -7/Lower Caves | Entered Zion 7940 | -7/Zion | Acquired unknown access codes intercepted by a Zionite 7997 | -7/Zion | Discovered new exit (range 15) 8020 | -7/Zion | Identified exit to Proximity Caves 8081 | -7/Zion | Given A8's code to call for help 8094 | -7/Zion | System corruption cleaned by Quarantine Array 8390 | -7/Zion | Given the Hacking Drone Bay 8390 | -7/Zion | Found Prototype Device 8391 | -7/Zion | Identified Hacking Drone Bay 8412 | -7/Zion | Build established: Hauler-Mutant 8482 | -7/Zion | Learned location of 1 exit from Factory 8573 | -7/Zion | Learned Factory terminal intel 8589 | -7/Zion | Learned location of Data Miner (-6) 8602 | -7/Zion | Learned location of Warlord (-5) 8764 | -7/Zion | Gained Derelict followers 8957 | -7/Zion | Rebuked by Imprinter 8974 | -7/Zion | Attempted to imprint without authorization 8974 | -7/Zion | Attacked by Zionites 9041 | -7/Zion | Core integrity fell below 20% 9099 | -7/Zion | Lost 13 parts (1p4n3u5w) 9236 | -7/Zion | Lost 5 parts (1p1n2u1w) 9246 | -7/Zion | Destroyed by GK-2MI(z) with Makeshift Axe Last Messages --------------- 09196_ Nuclear Core destroyed. 09199_ Destroyed Med. Matter Pod. 09202_ Lightpack 2.0 destroyed. 09202_ ZE-O0M(z) destroyed. 09204_ EN-Y6E(z) destroyed. 09205_ System corrupted: Heat flow error (+225). 09205_ Imp. Signal Interpreter destroyed. 09205_ Gravmag System destroyed. 09205_ System corrupted by crushing effect (+2). 09205_ Knocked back. 09207_ X6-ZPM(z) knocked back. 09209_ X6-ZPM(z) destroyed. 09223_ 4F-FCE(z) destroyed. 09224_ 1R-R6H(m) destroyed. 09232_ Acquired 7 matter. 09234_ System corrupted: Matter fused (-10). 09237_ A3-MXM(z) pulls a Mak. Axe out of the Twisted Machinery. 09241_ YA-J6L(z) pulls a Mak. Sword out of the Twisted Machinery. 09243_ A3-MXM(z) destroyed. 09244_ Acquired 5 matter. Map ----- +----------------------------------------------------+ | ??????????????"?""""#"""" """""""""""" """#"" | | ??????????????????""##"" """" """""" """#" " | | ???????????????????#""" """ "#"" "#""" " | | ???????????????????#""" "" """ """"" " | | ???????????????????##"" """ """"" " | | ????????????????????#""" "" """" " | | ????????????????????###" """ " | | ?????????????????????#"" | | ???????????????????#""" | | ???????????????????##""" "" | | ????????????????????#""""" """"""" """"? | | ????????????????????##"#""" """""" """ "" | | ????????????????????#"#""#"" """" #""" " | | ????????????????????######""" """ """" ? ?? | | ??????????????????###"##?###"" "" """" ???? | | ?????????#####?####"#""##??##"" "" #"""""???? | | ?????????#""""#" """""""##??#""" " """#"????? | | ?????????## " """ """####"""" " """"#????? | | ?????????#"" " """"""""""""" """##????? | | ?????????#" " "#""""""""" "##?????? | | ?????????##" " """" ""####???? | | ?????????#""""#" """" """""###?? | | ?????????#####?## """"" """""" ""#""""##? | | ????????##???##?## """" """""z """" """#? | | ???????"#"####"### ""##? | | ???????#""""""#"""" =@z z % """#? | | ########"""" "*"""#"% "% "" "#"#? | | """""" ###" ![*["!"% " """#?? | | """""" #""" *!*!!*= ==z c "" " """"#?? | | #""" *!!*/[[%* % "% "" """""###?? | | "" ##"" !%*"%"|! *%" " #""###???? | | """ !"""""" """"" " #"""#????? | | """ % ""###""""""#" " #""##????? | | """ ""###"""""""" " #""#?????? | | "" ###" =*"""####"#"" "" #"##?????? | | #""" ""##??##""" """ """ """##????? | | """""" ###" %""#???##""" """"" """ """"#????? | | """""" #""" ""##?##"""" "" """ ""###????? | | ##########" """###"""" """ "######## | | ???#####?## "####"""" """""##"" | | ??##" "#### ##?#""" """"""""# | | ??#" #???#" ! "# | | ??#" #???#" % "" | | ??#" #???#"" [/ """ | | ??##% #### #???#""""" """" | | ???# % #??######???##"""" "#"" | | #### #######??????#"#"" """"""" | | """" *!% """""??????###"" ""##""" """"##""" | | ###"! ######????????#"" "###""" " """"""""""" | | " % " #????????#"" ""#""" "" """"""""""" | +----------------------------------------------------+ Best States ------------- Heat Dissipation 62 Energy Generation 16 Energy Capacity 290 Matter Stores 300 Matter Capacity 300 Sight Range 16 Robot Scan Range 15 Terrain Scan Range 16 Terrain Scan Density 10 Armor Coverage 225 Weapon Cycling 15 Evasion (%) 44 Recoil Reduction 1 Matter Filtering 30 Kinecelleration 30 Defensive Hacking 10 Item Schematics ----------------- Hvy. Particle Gun | -7/Factory | Scanalyzed Thermic Laser | -7/Zion | Archive Plasma Cannon | -7/Zion | Archive Mak. Armor Plating | -7/Zion | Archive Magnetic Acceleration Cannon | -7/Zion | Archive Imp. Recalibrator | -7/Zion | Archive Mak. Salvage Targeting Computer | -7/Zion | Archive Imp. Trap Scanner | -7/Zion | Archive Imp. Carbon-fiber Leg | -7/Zion | Archive Imp. Heavy Armor Plating | -7/Zion | Archive Mak. Hammer | -7/Zion | Archive Nuclear Pulse Thruster | -7/Zion | Archive Coil Gun | -7/Zion | Archive Adv. ECM Suite | -7/Zion | Archive Adv. Shield Generator | -7/Zion | Archive Robot Schematics ------------------ G-47 Trooper | -7/Zion | Archive A-02 Transporter | -7/Zion | Archive B-48 Gladiator | -7/Zion | Archive Fabricated ------------ Nothing Alien Tech Used ----------------- None Achievements -------------- Hey, That's Mine! More Dakka Please Oops Packrat Robot Respite Serviceable Loadout Tourist Challenges ------------ None Game ------ Seed FusionNeutronSink Manual? 0 Play Time 03:41:32 Cumulative 18.4 hours Start 2023.12.01 @ 22:07:00 End 2023.12.02 @ 11:34:33 Sessions 8 Manual Loads 0 Difficulty Rogue Special Mode None Game No. 8 Rogue 8 Adventurer 0 Explorer 0 Win Type - Total 0 Types 0/0/0/0/0/0/0/0/0 Lore% 16 Gallery% 12 Achievement% 14 Wizard Run 0 Options --------- ASCII 0 Keyboard 0 Movement Mouse Keybinds 0 Fullscreen 1 Font 12/Tallcaps Map View 83x54 Tactical HUD 1 Map Filters NONE Filters NONE Steam 1 RUN: a329a105-b6e3-4557-b574-92b0ba6c8b03